[Event "Titled Tuesday Blitz July 11 Late 2023"]
[White "Tsukerman, Julia"]
[Black "Gyulamiryan-koryun"]
[WhiteFideId "2621649"]
[WhiteElo "2080"]
[BlackElo "1866"]
[Result "1-0"]
[Round "8"]
[TimeControl "180+2"]
[Date "2023.07.11"]
[WhiteClock "0:00:11"]
[BlackClock "0:00:00"]
[Board "134"]

1. e4 {[%clk 0:02:23]}  e5 {[%clk 0:02:58]} 2. Nf3 {[%clk 0:02:22]}  Nc6 {[%clk 0:02:57]} 3. Bb5 {[%clk 0:02:21]}  a6 {[%clk 0:02:57]} 4. Ba4 {[%clk 0:02:21]}  Nf6 {[%clk 0:02:56]} 5. d3 {[%clk 0:02:21]}  d6 {[%clk 0:02:55]} 6. c3 {[%clk 0:02:20]}  Be7 {[%clk 0:02:50]} 7. O-O {[%clk 0:02:19]}  O-O {[%clk 0:02:49]} 8. h3 {[%clk 0:02:18]}  b5 {[%clk 0:02:47]} 9. Bb3 {[%clk 0:02:18]}  Be6 {[%clk 0:02:46]} 10. Bc2 {[%clk 0:02:17]}  b4 {[%clk 0:02:46]} 11. d4 {[%clk 0:02:14]}  exd4 {[%clk 0:02:39]} 12. cxd4 {[%clk 0:02:06]}  Bc4 {[%clk 0:02:37]} 13. Re1 {[%clk 0:02:05]}  d5 {[%clk 0:02:32]} 14. e5 {[%clk 0:02:03]}  Ne4 {[%clk 0:02:22]} 15. Bxe4 {[%clk 0:02:02]}  dxe4 {[%clk 0:02:22]} 16. Rxe4 {[%clk 0:02:02]}  Qd5 {[%clk 0:02:09]} 17. Nbd2 {[%clk 0:01:52]}  Bxa2 {[%clk 0:02:03]} 18. b3 {[%clk 0:01:46]}  Bxb3 {[%clk 0:01:39]} 19. Qxb3 {[%clk 0:01:44]}  Rfd8 {[%clk 0:01:27]} 20. Bb2 {[%clk 0:01:33]}  a5 {[%clk 0:01:26]} 21. Rc1 {[%clk 0:01:25]}  Qb5 {[%clk 0:01:21]} 22. Qc4 {[%clk 0:01:11]}  Qxc4 {[%clk 0:01:05]} 23. Rxc4 {[%clk 0:01:09]}  Ra6 {[%clk 0:01:04]} 24. Nb3 {[%clk 0:00:51]}  Rd5 {[%clk 0:00:55]} 25. e6 {[%clk 0:00:38]}  f5 {[%clk 0:00:54]} 26. Re1 {[%clk 0:00:31]}  a4 {[%clk 0:00:53]} 27. Nc5 {[%clk 0:00:31]}  Bxc5 {[%clk 0:00:32]} 28. dxc5 {[%clk 0:00:31]}  a3 {[%clk 0:00:27]} 29. Ba1 {[%clk 0:00:27]}  b3 {[%clk 0:00:20]} 30. e7 {[%clk 0:00:22]}  Nxe7 {[%clk 0:00:20]} 31. Rxe7 {[%clk 0:00:22]}  b2 {[%clk 0:00:20]} 32. Bxb2 {[%clk 0:00:19]}  axb2 {[%clk 0:00:20]} 33. Rb4 {[%clk 0:00:19]}  Ra1+ {[%clk 0:00:19]} 34. Re1 {[%clk 0:00:18]}  Rdd1 {[%clk 0:00:13]} 35. Rxb2 {[%clk 0:00:16]}  Rxe1+ {[%clk 0:00:12]} 36. Nxe1 {[%clk 0:00:16]}  Rxe1+ {[%clk 0:00:12]} 37. Kh2 {[%clk 0:00:17]}  Rc1 {[%clk 0:00:11]} 38. Rb5 {[%clk 0:00:18]}  c6 {[%clk 0:00:11]} 39. Rb8+ {[%clk 0:00:17]}  Kf7 {[%clk 0:00:10]} 40. Rb7+ {[%clk 0:00:17]}  Kf6 {[%clk 0:00:11]} 41. Rc7 {[%clk 0:00:16]}  Rxc5 {[%clk 0:00:11]} 42. Kg3 {[%clk 0:00:16]}  g5 {[%clk 0:00:10]} 43. f3 {[%clk 0:00:16]}  h5 {[%clk 0:00:10]} 44. h4 {[%clk 0:00:16]}  f4+ {[%clk 0:00:10]} 45. Kh3 {[%clk 0:00:16]}  gxh4 {[%clk 0:00:06]} 46. Kxh4 {[%clk 0:00:17]}  Ke6 {[%clk 0:00:06]} 47. Kh3 {[%clk 0:00:15]}  Kd6 {[%clk 0:00:06]} 48. Rh7 {[%clk 0:00:15]}  Re5 {[%clk 0:00:04]} 49. Rh6+ {[%clk 0:00:14]}  Kd5 {[%clk 0:00:03]} 50. Kh4 {[%clk 0:00:12]}  c5 {[%clk 0:00:02]} 51. g4 {[%clk 0:00:11]}  fxg3 {[%clk 0:00:01]} 52. Kxg3 {[%clk 0:00:12]}  c4 {[%clk 0:00:02]} 53. Rh8 {[%clk 0:00:12]}  Kd4 {[%clk 0:00:01]} 54. Rd8+ {[%clk 0:00:12]}  Rd5 {[%clk 0:00:01]} 55. Rc8 {[%clk 0:00:12]}  Rc5 {[%clk 0:00:01]} 56. Rd8+ {[%clk 0:00:12]}  Ke5 {[%clk 0:00:00]} 57. f4+ {[%clk 0:00:11]} 1-0


[Site "https://www.chess.com"]

[Event "Titled Tuesday Blitz July 11 Late 2023"]
[White "Lutz, Igor Oscar"]
[Black "Awoki, Daniel Teidi"]
[WhiteFideId "2110806"]
[BlackFideId "2100827"]
[WhiteElo "1972"]
[BlackElo "2313"]
[Result "0-1"]
[Round "8"]
[TimeControl "180+2"]
[Date "2023.07.11"]
[WhiteClock "0:00:14"]
[BlackClock "0:01:44"]
[Board "135"]

1. d4 {[%clk 0:02:55]}  Nf6 {[%clk 0:03:00]} 2. c4 {[%clk 0:02:55]}  e6 {[%clk 0:03:00]} 3. g3 {[%clk 0:02:55]}  d5 {[%clk 0:02:59]} 4. Nf3 {[%clk 0:02:55]}  Be7 {[%clk 0:03:00]} 5. Bg2 {[%clk 0:02:56]}  O-O {[%clk 0:03:01]} 6. O-O {[%clk 0:02:54]}  dxc4 {[%clk 0:03:01]} 7. Ne5 {[%clk 0:02:52]}  Nc6 {[%clk 0:03:01]} 8. Nxc6 {[%clk 0:02:30]}  bxc6 {[%clk 0:03:02]} 9. Bxc6 {[%clk 0:02:30]}  Rb8 {[%clk 0:03:03]} 10. Bg2 {[%clk 0:02:26]}  c5 {[%clk 0:02:59]} 11. dxc5 {[%clk 0:02:18]}  Bxc5 {[%clk 0:03:00]} 12. Nc3 {[%clk 0:02:10]}  Bb7 {[%clk 0:02:50]} 13. Qa4 {[%clk 0:02:05]}  Bxg2 {[%clk 0:02:40]} 14. Kxg2 {[%clk 0:02:06]}  Qc7 {[%clk 0:02:36]} 15. Qxc4 {[%clk 0:01:52]}  Qc6+ {[%clk 0:02:35]} 16. e4 {[%clk 0:01:47]}  Rb4 {[%clk 0:02:32]} 17. Qd3 {[%clk 0:01:36]}  Nxe4 {[%clk 0:02:30]} 18. Nxe4 {[%clk 0:01:21]}  Rxe4 {[%clk 0:02:31]} 19. Qf3 {[%clk 0:01:10]}  Rc8 {[%clk 0:02:22]} 20. Bd2 {[%clk 0:01:02]}  Re2 {[%clk 0:02:10]} 21. Qxc6 {[%clk 0:00:56]}  Rxc6 {[%clk 0:02:11]} 22. Bc3 {[%clk 0:00:55]}  h5 {[%clk 0:01:59]} 23. Rad1 {[%clk 0:00:48]}  Bb6 {[%clk 0:01:50]} 24. Kf3 {[%clk 0:00:23]}  Rc2 {[%clk 0:01:47]} 25. Rd2 {[%clk 0:00:20]}  R6xc3+ {[%clk 0:01:44]} 26. bxc3 {[%clk 0:00:14]}  Rxd2 {[%clk 0:01:44]} 0-1


[Site "https://www.chess.com"]

[Event "Titled Tuesday Blitz July 11 Late 2023"]
[White "Firouzja, Alireza"]
[Black "Carlsen, Magnus"]
[WhiteFideId "12573981"]
[BlackFideId "1503014"]
[WhiteElo "3110"]
[BlackElo "3281"]
[Result "0-1"]
[Round "9"]
[TimeControl "180+2"]
[Date "2023.07.11"]
[WhiteClock "0:00:00"]
[BlackClock "0:00:08"]
[Board "1"]

1. d4 {[%clk 0:03:00]}  a6 {[%clk 0:02:56]} 2. a3 {[%clk 0:02:55]}  e6 {[%clk 0:02:49]} 3. e4 {[%clk 0:02:48]}  d5 {[%clk 0:02:48]} 4. e5 {[%clk 0:02:46]}  c5 {[%clk 0:02:48]} 5. c3 {[%clk 0:02:47]}  Bd7 {[%clk 0:02:48]} 6. Nf3 {[%clk 0:02:35]}  Bb5 {[%clk 0:02:46]} 7. Bxb5+ {[%clk 0:02:35]}  axb5 {[%clk 0:02:47]} 8. dxc5 {[%clk 0:02:30]}  Bxc5 {[%clk 0:02:46]} 9. O-O {[%clk 0:02:31]}  Nc6 {[%clk 0:02:44]} 10. Nbd2 {[%clk 0:02:30]}  Nge7 {[%clk 0:02:37]} 11. Nb3 {[%clk 0:02:30]}  Ba7 {[%clk 0:02:29]} 12. Qe2 {[%clk 0:02:23]}  Qd7 {[%clk 0:02:29]} 13. Rd1 {[%clk 0:01:56]}  O-O {[%clk 0:02:24]} 14. Nbd4 {[%clk 0:01:51]}  Nxd4 {[%clk 0:02:23]} 15. Nxd4 {[%clk 0:01:52]}  Bxd4 {[%clk 0:02:22]} 16. Rxd4 {[%clk 0:01:52]}  Ra4 {[%clk 0:02:22]} 17. Be3 {[%clk 0:01:44]}  Nf5 {[%clk 0:02:19]} 18. Rb4 {[%clk 0:01:40]}  Rxb4 {[%clk 0:01:25]} 19. axb4 {[%clk 0:01:40]}  Qc6 {[%clk 0:01:26]} 20. Bc5 {[%clk 0:01:31]}  Rc8 {[%clk 0:01:25]} 21. g4 {[%clk 0:01:31]}  Nh4 {[%clk 0:01:23]} 22. Bd4 {[%clk 0:01:23]}  g5 {[%clk 0:01:08]} 23. f4 {[%clk 0:01:16]}  Qc4 {[%clk 0:00:55]} 24. Qxc4 {[%clk 0:01:02]}  bxc4 {[%clk 0:00:50]} 25. Kf2 {[%clk 0:00:47]}  gxf4 {[%clk 0:00:49]} 26. b5 {[%clk 0:00:47]}  h5 {[%clk 0:00:44]} 27. h3 {[%clk 0:00:39]}  hxg4 {[%clk 0:00:44]} 28. hxg4 {[%clk 0:00:40]}  Kg7 {[%clk 0:00:43]} 29. Ra7 {[%clk 0:00:34]}  Rc7 {[%clk 0:00:17]} 30. b6 {[%clk 0:00:33]}  Rd7 {[%clk 0:00:18]} 31. Bc5 {[%clk 0:00:25]}  Kg6 {[%clk 0:00:11]} 32. Bd6 {[%clk 0:00:14]}  Kg5 {[%clk 0:00:07]} 33. Bc7 {[%clk 0:00:14]}  d4 {[%clk 0:00:08]} 34. cxd4 {[%clk 0:00:06]}  Rxd4 {[%clk 0:00:07]} 35. Rxb7 {[%clk 0:00:03]}  Rd2+ {[%clk 0:00:07]} 36. Kf1 {[%clk 0:00:03]}  Rxb2 {[%clk 0:00:08]} 37. Bd8+ {[%clk 0:00:03]}  Kxg4 {[%clk 0:00:08]} 38. Bxh4 {[%clk 0:00:01]}  Kxh4 {[%clk 0:00:09]} 39. Rxf7 {[%clk 0:00:01]}  Kg3 {[%clk 0:00:09]} 40. b7 {[%clk 0:00:01]}  f3 {[%clk 0:00:10]} 41. Ke1 {[%clk 0:00:01]}  f2+ {[%clk 0:00:08]} 42. Kd1 {[%clk 0:00:00]}  Rxb7 {[%clk 0:00:08]} 0-1


[Site "https://www.chess.com"]

[Event "Titled Tuesday Blitz July 11 Late 2023"]
[White "Nakamura, Hikaru"]
[Black "Bortnyk, Mykola"]
[WhiteFideId "2016192"]
[BlackFideId "14120836"]
[WhiteElo "3239"]
[BlackElo "3009"]
[Result "1-0"]
[Round "9"]
[TimeControl "180+2"]
[Date "2023.07.11"]
[WhiteClock "0:00:58"]
[BlackClock "0:00:37"]
[Board "2"]

1. a3 {[%clk 0:02:46]}  e5 {[%clk 0:02:53]} 2. c4 {[%clk 0:02:46]}  c6 {[%clk 0:02:52]} 3. Nf3 {[%clk 0:02:36]}  e4 {[%clk 0:02:52]} 4. Nd4 {[%clk 0:02:36]}  d5 {[%clk 0:02:50]} 5. d3 {[%clk 0:02:33]}  Nf6 {[%clk 0:02:48]} 6. cxd5 {[%clk 0:02:25]}  cxd5 {[%clk 0:02:47]} 7. Nc3 {[%clk 0:02:24]}  Bc5 {[%clk 0:02:46]} 8. Nb3 {[%clk 0:02:14]}  Bb6 {[%clk 0:02:33]} 9. d4 {[%clk 0:02:14]}  h6 {[%clk 0:02:30]} 10. Bf4 {[%clk 0:02:14]}  Nh5 {[%clk 0:02:26]} 11. Be5 {[%clk 0:02:06]}  Nc6 {[%clk 0:02:14]} 12. e3 {[%clk 0:02:06]}  Nf6 {[%clk 0:02:10]} 13. Bxf6 {[%clk 0:02:05]}  gxf6 {[%clk 0:02:11]} 14. Qh5 {[%clk 0:02:03]}  Be6 {[%clk 0:02:09]} 15. g3 {[%clk 0:02:03]}  Qd7 {[%clk 0:01:58]} 16. Be2 {[%clk 0:01:52]}  O-O-O {[%clk 0:01:54]} 17. O-O-O {[%clk 0:01:48]}  f5 {[%clk 0:01:51]} 18. Kb1 {[%clk 0:01:48]}  Kb8 {[%clk 0:01:51]} 19. Na4 {[%clk 0:01:46]}  Rc8 {[%clk 0:01:35]} 20. Nac5 {[%clk 0:01:39]}  Qd6 {[%clk 0:01:32]} 21. Rc1 {[%clk 0:01:38]}  Na5 {[%clk 0:01:20]} 22. Nxa5 {[%clk 0:01:36]}  Bxa5 {[%clk 0:01:20]} 23. Rc2 {[%clk 0:01:37]}  Bb6 {[%clk 0:01:18]} 24. Rhc1 {[%clk 0:01:36]}  Bxc5 {[%clk 0:01:18]} 25. Rxc5 {[%clk 0:01:29]}  Rxc5 {[%clk 0:01:17]} 26. Rxc5 {[%clk 0:01:30]}  b6 {[%clk 0:01:14]} 27. Rc3 {[%clk 0:01:26]}  Kb7 {[%clk 0:01:08]} 28. Qh4 {[%clk 0:01:16]}  Qd8 {[%clk 0:01:05]} 29. Qf4 {[%clk 0:01:16]}  Qb8 {[%clk 0:01:05]} 30. Qh4 {[%clk 0:01:13]}  Qd8 {[%clk 0:01:05]} 31. Qh5 {[%clk 0:01:11]}  Qg5 {[%clk 0:01:03]} 32. Qh3 {[%clk 0:01:11]}  f4 {[%clk 0:01:01]} 33. Qf1 {[%clk 0:01:11]}  fxg3 {[%clk 0:00:53]} 34. fxg3 {[%clk 0:00:59]}  Qe7 {[%clk 0:00:53]} 35. Ba6+ {[%clk 0:00:58]}  Kb8 {[%clk 0:00:53]} 36. Qf4+ {[%clk 0:00:57]}  Ka8 {[%clk 0:00:50]} 37. Rc7 {[%clk 0:00:57]}  Qg5 {[%clk 0:00:43]} 38. Bb7+ {[%clk 0:00:57]}  Kb8 {[%clk 0:00:37]} 39. Qd6 {[%clk 0:00:58]} 1-0


[Site "https://www.chess.com"]

[Event "Titled Tuesday Blitz July 11 Late 2023"]
[White "Deac, Bogdan-Daniel"]
[Black "Fedoseev, Vladimir"]
[WhiteFideId "1226380"]
[BlackFideId "24130737"]
[WhiteElo "3005"]
[BlackElo "3085"]
[Result "1-0"]
[Round "9"]
[TimeControl "180+2"]
[Date "2023.07.11"]
[WhiteClock "0:00:05"]
[BlackClock "0:00:39"]
[Board "3"]

1. d4 {[%clk 0:03:00]}  d5 {[%clk 0:02:58]} 2. c4 {[%clk 0:03:00]}  c6 {[%clk 0:02:59]} 3. Nf3 {[%clk 0:03:00]}  Nf6 {[%clk 0:02:59]} 4. Qb3 {[%clk 0:02:57]}  dxc4 {[%clk 0:02:58]} 5. Qxc4 {[%clk 0:02:57]}  Bf5 {[%clk 0:02:58]} 6. g3 {[%clk 0:02:52]}  e6 {[%clk 0:02:58]} 7. Bg2 {[%clk 0:02:52]}  Be7 {[%clk 0:02:58]} 8. O-O {[%clk 0:02:53]}  O-O {[%clk 0:02:58]} 9. e3 {[%clk 0:02:53]}  Nbd7 {[%clk 0:02:57]} 10. Qe2 {[%clk 0:02:53]}  h6 {[%clk 0:02:56]} 11. Rd1 {[%clk 0:02:53]}  Rc8 {[%clk 0:02:54]} 12. Nc3 {[%clk 0:02:51]}  Ne4 {[%clk 0:02:54]} 13. Nd2 {[%clk 0:02:51]}  Nxc3 {[%clk 0:02:47]} 14. bxc3 {[%clk 0:02:52]}  e5 {[%clk 0:02:47]} 15. e4 {[%clk 0:02:47]}  Bg6 {[%clk 0:02:43]} 16. Nc4 {[%clk 0:02:27]}  Qc7 {[%clk 0:02:40]} 17. Bh3 {[%clk 0:02:04]}  Nf6 {[%clk 0:02:10]} 18. Bxc8 {[%clk 0:01:29]}  Qxc8 {[%clk 0:02:10]} 19. f3 {[%clk 0:01:25]}  exd4 {[%clk 0:02:08]} 20. cxd4 {[%clk 0:01:26]}  Qe6 {[%clk 0:02:08]} 21. Ne5 {[%clk 0:01:22]}  Bh7 {[%clk 0:02:01]} 22. Bb2 {[%clk 0:01:21]}  Rd8 {[%clk 0:01:54]} 23. Qc4 {[%clk 0:01:17]}  Nd7 {[%clk 0:01:43]} 24. Qxe6 {[%clk 0:01:03]}  fxe6 {[%clk 0:01:44]} 25. Nc4 {[%clk 0:01:02]}  Bg6 {[%clk 0:01:41]} 26. Ba3 {[%clk 0:00:49]}  Bxa3 {[%clk 0:01:34]} 27. Nxa3 {[%clk 0:00:48]}  Rf8 {[%clk 0:01:34]} 28. Kg2 {[%clk 0:00:45]}  e5 {[%clk 0:01:26]} 29. d5 {[%clk 0:00:40]}  c5 {[%clk 0:01:27]} 30. Rab1 {[%clk 0:00:36]}  b6 {[%clk 0:01:27]} 31. Nc4 {[%clk 0:00:36]}  Rb8 {[%clk 0:01:13]} 32. a4 {[%clk 0:00:36]}  Kf8 {[%clk 0:01:12]} 33. Rb2 {[%clk 0:00:34]}  Ke7 {[%clk 0:01:06]} 34. Rdb1 {[%clk 0:00:34]}  Rf8 {[%clk 0:00:57]} 35. a5 {[%clk 0:00:27]}  Bh5 {[%clk 0:00:53]} 36. g4 {[%clk 0:00:25]}  Bg6 {[%clk 0:00:53]} 37. axb6 {[%clk 0:00:25]}  axb6 {[%clk 0:00:53]} 38. Nxb6 {[%clk 0:00:24]}  Nf6 {[%clk 0:00:53]} 39. Nc4 {[%clk 0:00:18]}  Nxe4 {[%clk 0:00:53]} 40. Rb7+ {[%clk 0:00:13]}  Kf6 {[%clk 0:00:54]} 41. R1b6+ {[%clk 0:00:13]}  Kg5 {[%clk 0:00:49]} 42. Nxe5 {[%clk 0:00:07]}  Be8 {[%clk 0:00:40]} 43. fxe4 {[%clk 0:00:05]}  Kf4 {[%clk 0:00:40]} 44. Ng6+ {[%clk 0:00:04]}  Bxg6 {[%clk 0:00:40]} 45. Rxg6 {[%clk 0:00:05]}  Ke3 {[%clk 0:00:40]} 46. Rb2 {[%clk 0:00:04]}  c4 {[%clk 0:00:40]} 47. Rc6 {[%clk 0:00:04]}  Kd3 {[%clk 0:00:39]} 48. d6 {[%clk 0:00:04]}  Rd8 {[%clk 0:00:36]} 49. e5 {[%clk 0:00:04]}  Kd4 {[%clk 0:00:37]} 50. e6 {[%clk 0:00:04]}  Kd5 {[%clk 0:00:37]} 51. e7 {[%clk 0:00:04]}  Rb8 {[%clk 0:00:38]} 52. Rxb8 {[%clk 0:00:03]}  Kxc6 {[%clk 0:00:38]} 53. e8=Q+ {[%clk 0:00:04]}  Kxd6 {[%clk 0:00:39]} 54. Qd8+ {[%clk 0:00:04]}  Kc5 {[%clk 0:00:39]} 55. Rc8+ {[%clk 0:00:05]} 1-0


[Site "https://www.chess.com"]

[Event "Titled Tuesday Blitz July 11 Late 2023"]
[White "Shimanov, Aleksandr"]
[Black "Bluebaum, Matthias"]
[WhiteFideId "4198603"]
[BlackFideId "24651516"]
[WhiteElo "2941"]
[BlackElo "3047"]
[Result "1/2-1/2"]
[Round "9"]
[TimeControl "180+2"]
[Date "2023.07.11"]
[WhiteClock "0:00:07"]
[BlackClock "0:00:22"]
[Board "6"]

1. c4 {[%clk 0:03:00]}  e6 {[%clk 0:03:00]} 2. Nf3 {[%clk 0:02:56]}  d5 {[%clk 0:03:00]} 3. g3 {[%clk 0:02:51]}  Nf6 {[%clk 0:03:00]} 4. Bg2 {[%clk 0:02:44]}  Nc6 {[%clk 0:03:01]} 5. O-O {[%clk 0:02:37]}  Bd6 {[%clk 0:03:01]} 6. b3 {[%clk 0:02:37]}  O-O {[%clk 0:03:02]} 7. Bb2 {[%clk 0:02:36]}  d4 {[%clk 0:03:02]} 8. e3 {[%clk 0:02:29]}  e5 {[%clk 0:03:02]} 9. exd4 {[%clk 0:02:29]}  Nxd4 {[%clk 0:03:03]} 10. Nxd4 {[%clk 0:02:29]}  exd4 {[%clk 0:03:04]} 11. d3 {[%clk 0:02:27]}  c5 {[%clk 0:03:04]} 12. Nd2 {[%clk 0:02:26]}  Bg4 {[%clk 0:03:00]} 13. Qc2 {[%clk 0:02:26]}  Qd7 {[%clk 0:02:56]} 14. Rfe1 {[%clk 0:02:25]}  Rae8 {[%clk 0:02:53]} 15. b4 {[%clk 0:02:20]}  h5 {[%clk 0:02:30]} 16. bxc5 {[%clk 0:02:19]}  Bxc5 {[%clk 0:02:30]} 17. Nb3 {[%clk 0:02:19]}  b6 {[%clk 0:02:24]} 18. Qd2 {[%clk 0:02:08]}  Bh3 {[%clk 0:01:43]} 19. Qf4 {[%clk 0:02:00]}  Bxg2 {[%clk 0:01:40]} 20. Kxg2 {[%clk 0:02:01]}  Qc6+ {[%clk 0:01:21]} 21. Qf3 {[%clk 0:02:00]}  Qd6 {[%clk 0:01:19]} 22. h3 {[%clk 0:01:54]}  a5 {[%clk 0:01:11]} 23. a4 {[%clk 0:01:46]}  Nd7 {[%clk 0:01:12]} 24. Qd5 {[%clk 0:01:24]}  Qxd5+ {[%clk 0:00:57]} 25. cxd5 {[%clk 0:01:25]}  Nf6 {[%clk 0:00:57]} 26. Nxc5 {[%clk 0:00:53]}  bxc5 {[%clk 0:00:58]} 27. Ba3 {[%clk 0:00:54]}  Rxe1 {[%clk 0:00:51]} 28. Rxe1 {[%clk 0:00:55]}  Rc8 {[%clk 0:00:51]} 29. d6 {[%clk 0:00:51]}  c4 {[%clk 0:00:43]} 30. dxc4 {[%clk 0:00:49]}  Rxc4 {[%clk 0:00:44]} 31. Rd1 {[%clk 0:00:25]}  Rxa4 {[%clk 0:00:23]} 32. Bb2 {[%clk 0:00:25]}  Nd7 {[%clk 0:00:21]} 33. Bxd4 {[%clk 0:00:25]}  f6 {[%clk 0:00:21]} 34. Bc3 {[%clk 0:00:22]}  Ra3 {[%clk 0:00:20]} 35. Rc1 {[%clk 0:00:13]}  Kf7 {[%clk 0:00:19]} 36. Re1 {[%clk 0:00:08]}  Rxc3 {[%clk 0:00:16]} 37. Re7+ {[%clk 0:00:08]}  Kg6 {[%clk 0:00:17]} 38. Rxd7 {[%clk 0:00:09]}  Rd3 {[%clk 0:00:17]} 39. Ra7 {[%clk 0:00:05]}  Rxd6 {[%clk 0:00:17]} 40. Rxa5 {[%clk 0:00:05]}  Rd4 {[%clk 0:00:18]} 41. h4 {[%clk 0:00:05]}  Rb4 {[%clk 0:00:18]} 42. Rc5 {[%clk 0:00:05]}  Ra4 {[%clk 0:00:19]} 43. Rb5 {[%clk 0:00:06]}  Rc4 {[%clk 0:00:19]} 44. Ra5 {[%clk 0:00:06]}  Rb4 {[%clk 0:00:20]} 45. Rc5 {[%clk 0:00:06]}  Ra4 {[%clk 0:00:21]} 46. Rb5 {[%clk 0:00:07]}  Rc4 {[%clk 0:00:21]} 47. Ra5 {[%clk 0:00:07]}  Rb4 {[%clk 0:00:22]} 1/2-1/2


[Site "https://www.chess.com"]

[Event "Titled Tuesday Blitz July 11 Late 2023"]
[White "Paravyan, David"]
[Black "Moroni, Luca Jr"]
[WhiteFideId "4194985"]
[BlackFideId "865834"]
[WhiteElo "3023"]
[BlackElo "2865"]
[Result "1-0"]
[Round "9"]
[TimeControl "180+2"]
[Date "2023.07.11"]
[WhiteClock "0:00:26"]
[BlackClock "0:00:04"]
[Board "7"]

1. e4 {[%clk 0:02:57]}  e5 {[%clk 0:02:59]} 2. Nf3 {[%clk 0:02:57]}  Nc6 {[%clk 0:03:00]} 3. Bb5 {[%clk 0:02:56]}  a6 {[%clk 0:02:59]} 4. Ba4 {[%clk 0:02:54]}  d6 {[%clk 0:02:59]} 5. O-O {[%clk 0:02:53]}  Bd7 {[%clk 0:03:00]} 6. c3 {[%clk 0:02:51]}  g6 {[%clk 0:03:00]} 7. d4 {[%clk 0:02:51]}  Bg7 {[%clk 0:03:00]} 8. Be3 {[%clk 0:02:49]}  Nf6 {[%clk 0:02:59]} 9. Nbd2 {[%clk 0:02:50]}  O-O {[%clk 0:02:58]} 10. h3 {[%clk 0:02:50]}  Re8 {[%clk 0:02:53]} 11. Bc2 {[%clk 0:02:49]}  b5 {[%clk 0:02:49]} 12. Re1 {[%clk 0:02:48]}  Nh5 {[%clk 0:02:40]} 13. Rc1 {[%clk 0:02:45]}  Na5 {[%clk 0:02:34]} 14. b3 {[%clk 0:02:38]}  Qc8 {[%clk 0:02:28]} 15. Nf1 {[%clk 0:02:30]}  c5 {[%clk 0:02:23]} 16. d5 {[%clk 0:02:24]}  c4 {[%clk 0:02:18]} 17. b4 {[%clk 0:02:23]}  Nb7 {[%clk 0:02:18]} 18. a4 {[%clk 0:02:23]}  a5 {[%clk 0:02:17]} 19. axb5 {[%clk 0:02:21]}  axb4 {[%clk 0:02:15]} 20. cxb4 {[%clk 0:02:22]}  Bxb5 {[%clk 0:02:15]} 21. Bd3 {[%clk 0:02:20]}  cxd3 {[%clk 0:01:58]} 22. Rxc8 {[%clk 0:02:21]}  Rexc8 {[%clk 0:01:58]} 23. g3 {[%clk 0:01:58]}  Nf6 {[%clk 0:01:39]} 24. N1d2 {[%clk 0:01:55]}  Rc2 {[%clk 0:01:38]} 25. Rf1 {[%clk 0:01:02]}  Raa2 {[%clk 0:01:30]} 26. Ne1 {[%clk 0:01:02]}  Rxd2 {[%clk 0:00:40]} 27. Bxd2 {[%clk 0:01:03]}  Nxe4 {[%clk 0:00:41]} 28. Nf3 {[%clk 0:01:02]}  h6 {[%clk 0:00:31]} 29. Re1 {[%clk 0:00:57]}  f5 {[%clk 0:00:29]} 30. Rxe4 {[%clk 0:00:53]}  fxe4 {[%clk 0:00:30]} 31. Nh4 {[%clk 0:00:53]}  Rb2 {[%clk 0:00:15]} 32. Nxg6 {[%clk 0:00:27]}  Nd8 {[%clk 0:00:15]} 33. Ne7+ {[%clk 0:00:27]}  Kf7 {[%clk 0:00:13]} 34. Nf5 {[%clk 0:00:27]}  Bf6 {[%clk 0:00:06]} 35. Qh5+ {[%clk 0:00:26]}  Kg8 {[%clk 0:00:04]} 36. Qg6+ {[%clk 0:00:26]} 1-0


[Site "https://www.chess.com"]

[Event "Titled Tuesday Blitz July 11 Late 2023"]
[White "Oparin, Grigoriy"]
[Black "Bolourchifard, Farzad"]
[WhiteFideId "24125890"]
[BlackFideId "12510084"]
[WhiteElo "2990"]
[BlackElo "2700"]
[Result "0-1"]
[Round "9"]
[TimeControl "180+2"]
[Date "2023.07.11"]
[WhiteClock "0:00:00"]
[BlackClock "0:00:12"]
[Board "8"]

1. Nf3 {[%clk 0:03:00]}  d5 {[%clk 0:02:59]} 2. g3 {[%clk 0:03:01]}  Nf6 {[%clk 0:03:00]} 3. Bg2 {[%clk 0:03:02]}  Bf5 {[%clk 0:03:00]} 4. c4 {[%clk 0:03:01]}  e6 {[%clk 0:03:00]} 5. Qb3 {[%clk 0:03:00]}  Qc8 {[%clk 0:02:57]} 6. O-O {[%clk 0:02:56]}  c6 {[%clk 0:02:57]} 7. d3 {[%clk 0:02:54]}  Be7 {[%clk 0:02:54]} 8. cxd5 {[%clk 0:02:53]}  exd5 {[%clk 0:02:54]} 9. Nc3 {[%clk 0:02:54]}  O-O {[%clk 0:02:49]} 10. e4 {[%clk 0:02:50]}  dxe4 {[%clk 0:02:48]} 11. Nd4 {[%clk 0:02:44]}  Bh3 {[%clk 0:02:47]} 12. dxe4 {[%clk 0:02:43]}  Bxg2 {[%clk 0:02:41]} 13. Kxg2 {[%clk 0:02:43]}  Na6 {[%clk 0:02:35]} 14. Nf5 {[%clk 0:02:43]}  Bc5 {[%clk 0:02:19]} 15. Qc4 {[%clk 0:02:20]}  Qe6 {[%clk 0:02:11]} 16. Qxe6 {[%clk 0:02:14]}  fxe6 {[%clk 0:02:11]} 17. Ne3 {[%clk 0:02:13]}  Nb4 {[%clk 0:01:54]} 18. a3 {[%clk 0:01:55]}  Bxe3 {[%clk 0:01:53]} 19. axb4 {[%clk 0:01:54]}  Bd4 {[%clk 0:01:54]} 20. f3 {[%clk 0:01:51]}  a6 {[%clk 0:01:53]} 21. Bd2 {[%clk 0:01:44]}  Rad8 {[%clk 0:01:51]} 22. Rfd1 {[%clk 0:01:44]}  Rd7 {[%clk 0:01:37]} 23. Be1 {[%clk 0:01:34]}  Rfd8 {[%clk 0:01:35]} 24. Na4 {[%clk 0:01:28]}  Ne8 {[%clk 0:01:26]} 25. Bf2 {[%clk 0:01:08]}  Bxf2 {[%clk 0:01:15]} 26. Rxd7 {[%clk 0:01:09]}  Rxd7 {[%clk 0:01:16]} 27. Kxf2 {[%clk 0:01:10]}  Rd4 {[%clk 0:01:13]} 28. Nc5 {[%clk 0:00:52]}  Rxb4 {[%clk 0:01:05]} 29. Nxe6 {[%clk 0:00:52]}  Rxb2+ {[%clk 0:00:53]} 30. Ke3 {[%clk 0:00:53]}  Kf7 {[%clk 0:00:50]} 31. Nc5 {[%clk 0:00:47]}  Ke7 {[%clk 0:00:28]} 32. h4 {[%clk 0:00:37]}  Rb5 {[%clk 0:00:28]} 33. Rc1 {[%clk 0:00:35]}  a5 {[%clk 0:00:27]} 34. g4 {[%clk 0:00:33]}  b6 {[%clk 0:00:24]} 35. Nd3 {[%clk 0:00:33]}  c5 {[%clk 0:00:23]} 36. Ne5 {[%clk 0:00:32]}  Nd6 {[%clk 0:00:21]} 37. Rd1 {[%clk 0:00:27]}  Rb3+ {[%clk 0:00:21]} 38. Kf4 {[%clk 0:00:27]}  a4 {[%clk 0:00:19]} 39. Nc6+ {[%clk 0:00:22]}  Ke6 {[%clk 0:00:19]} 40. e5 {[%clk 0:00:15]}  Nb5 {[%clk 0:00:20]} 41. Nd8+ {[%clk 0:00:13]}  Ke7 {[%clk 0:00:19]} 42. Nc6+ {[%clk 0:00:14]}  Ke6 {[%clk 0:00:19]} 43. Nd8+ {[%clk 0:00:07]}  Ke7 {[%clk 0:00:19]} 44. Nc6+ {[%clk 0:00:04]}  Kf7 {[%clk 0:00:18]} 45. Rd8 {[%clk 0:00:00]}  Nd4 {[%clk 0:00:12]} 0-1


[Site "https://www.chess.com"]